bitfinex/quotes_BTCUSD_20210402
["timestamp","ask_amount","ask_price","bid_price","bid_amount"]
[1617377317286,0.00196731,59551.0,59550.0,5.417]
[1617377317486,0.00196872,59552.0,59550.0,5.58380672]
[1617377317688,0.00295097,59553.0,59551.0,4.6517623]
[1617377317888,0.00295097,59553.0,59552.0,5.25770496]
[1617377318087,0.00295097,59553.0,59552.0,5.65970496]
[1617377318489,0.00295097,59553.0,59552.0,5.61970496]
[1617377318693,0.05902546,59565.0,59553.0,0.16680672]
[1617377318934,0.03933953,59560.0,59555.0,0.62203165]
[1617377319131,0.03933953,59560.0,59556.0,0.16680672]
[1617377319332,0.03930958,59559.0,59556.0,0.16680672]
[1617377319533,0.03930958,59559.0,59558.0,2.851813]
[1617377319733,0.03930958,59559.0,59558.0,3.24861972]
[1617377319930,0.03930958,59559.0,59558.0,1.271813]
[1617377320132,0.03930958,59559.0,59558.0,1.771813]
[1617377320346,0.00195926,59561.0,59558.0,1.771813]
[1617377320548,0.00195926,59561.0,59559.0,0.315]
[1617377320549,0.00195866,59560.0,59559.0,0.315]
[1617377320945,0.00195866,59560.0,59559.0,2.91124676]
[1617377321348,0.00195893,59561.0,59560.0,0.16680672]
[1617377321554,0.00195893,59561.0,59559.0,0.1]
[1617377321752,0.00293687,59561.0,59560.0,2.60680672]
[1617377321948,0.00293687,59561.0,59560.0,2.44]
[1617377322149,0.00293687,59561.0,59560.0,2.60680672]
[1617377322548,0.00293687,59561.0,59560.0,2.44]
[1617377322749,0.03915646,59568.0,59560.0,0.28]
[1617377322949,0.74647391,59567.0,59560.0,0.28]
[1617377323153,0.00293653,59561.0,59559.0,0.1]
[1617377323349,0.00293653,59561.0,59558.0,0.401813]
[1617377323554,0.08910419,59565.0,59558.0,0.15]
[1617377323751,0.00293623,59560.0,59558.0,0.05]
[1617377323950,0.00293623,59560.0,59557.0,0.12966066]
[1617377324164,0.00293623,59560.0,59557.0,0.17966066]
[1617377324362,0.00195749,59558.0,59557.0,0.17966066]
[1617377324762,0.00195749,59558.0,59557.0,2.13966066]
[1617377324964,0.00195749,59558.0,59557.0,2.66146738]
[1617377325165,0.00195749,59558.0,59557.0,0.31680672]
[1617377325363,0.00195749,59558.0,59557.0,0.15]
[1617377325570,0.00293548,59559.0,59551.0,0.1]
[1617377325767,0.00293548,59559.0,59552.0,0.5]
[1617377325967,0.00195698,59557.0,59549.0,0.26880672]
[1617377326164,0.00195698,59557.0,59549.0,0.16880672]
[1617377326367,0.00195698,59557.0,59549.0,0.26880672]
[1617377326566,0.00195599,59555.0,59549.0,0.102]
[1617377326789,0.00195599,59555.0,59550.0,0.765]
[1617377326994,0.00195599,59555.0,59550.0,0.93180672]
[1617377327192,0.00195599,59555.0,59551.0,0.1]
[1617377327589,0.0019556,59556.0,59551.0,0.1]
[1617377327792,0.00434751,59558.0,59552.0,3.56]
[1617377327995,0.00195529,59555.0,59552.0,3.72680672]
[1617377328190,0.00434751,59558.0,59552.0,3.72680672]
[1617377328990,0.00434751,59558.0,59553.0,0.15]
[1617377329193,0.00025793,59558.0,59552.0,3.72680672]
[1617377330019,0.00025793,59558.0,59553.0,0.1]
[1617377330418,0.00025793,59558.0,59553.0,0.26680672]
[1617377330616,0.00025793,59558.0,59554.0,0.05]
[1617377330819,0.00025793,59558.0,59554.0,0.265]
[1617377331216,0.00025793,59558.0,59554.0,0.43180672]
[1617377332039,0.088,59557.0,59554.0,0.05]
[1617377332440,0.088,59557.0,59553.0,0.1]
[1617377332842,0.088,59557.0,59549.0,0.15]
[1617377333045,0.088,59557.0,59550.0,0.5]
[1617377333252,0.24182304,59556.0,59550.0,0.5]
[1617377333451,1.03447391,59555.0,59547.0,0.14200081]
[1617377333650,0.74647391,59554.0,59540.0,0.14200081]
[1617377333845,0.47399008,59553.0,59540.0,0.14200081]
[1617377334042,0.088,59552.0,59540.0,0.14200081]
[1617377334246,0.251938,59548.0,59540.0,0.14200081]
[1617377334442,0.265,59547.0,59540.0,0.14200081]
[1617377334671,0.088,59546.0,59531.0,0.251938]
[1617377335871,0.176,59547.0,59531.0,0.251938]
[1617377336072,0.171,59547.0,59531.0,0.251938]
[1617377336275,0.171,59547.0,59543.0,1.79560672]
[1617377336480,0.331,59547.0,59543.0,1.79560672]
[1617377336675,0.331,59547.0,59544.0,0.365]
[1617377336874,0.00024911,59546.0,59544.0,0.365]
[1617377337074,0.173,59545.0,59544.0,0.365]
[1617377337312,0.173,59545.0,59544.0,0.1]
[1617377337702,0.333,59545.0,59544.0,0.1]
[1617377339507,0.333,59545.0,59543.0,1.6288]
[1617377340111,0.08797995,59544.0,59543.0,1.6288]
[1617377340313,0.24297995,59544.0,59543.0,1.6788]
[1617377340707,0.2931394,59544.0,59543.0,1.6788]
[1617377340908,0.24297995,59544.0,59543.0,1.6788]
[1617377341112,0.08797995,59544.0,59543.0,1.6788]
[1617377341313,0.08797995,59544.0,59543.0,1.7788]
[1617377342114,0.333,59545.0,59543.0,1.7788]
[1617377342312,0.333,59545.0,59544.0,0.1]
[1617377342537,0.333,59545.0,59543.0,1.6288]
[1617377343341,0.16,59545.0,59544.0,3.56]
[1617377343743,0.332,59545.0,59543.0,1.91827129]
[1617377344144,0.332,59545.0,59544.0,3.28]
[1617377344341,0.332,59545.0,59544.0,3.38]
[1617377344544,0.332,59545.0,59544.0,4.14]
[1617377344743,0.332,59545.0,59544.0,3.375]
[1617377344946,0.00024911,59546.0,59544.0,3.375]
[1617377345162,0.00024911,59546.0,59545.0,3.66]
[1617377345364,0.17224911,59546.0,59545.0,3.705]
[1617377345563,0.17224911,59546.0,59545.0,3.755]
[1617377346163,0.33224911,59546.0,59545.0,3.755]
[1617377346359,0.33224911,59546.0,59545.0,3.805]
[1617377346765,0.33224911,59546.0,59545.0,3.705]
[1617377347163,0.33224911,59546.0,59545.0,3.855]
[1617377347565,0.16024911,59546.0,59545.0,3.855]
[1617377347795,0.33224911,59546.0,59545.0,3.855]
[1617377347995,0.33224911,59546.0,59545.0,3.87]
[1617377348196,0.33224911,59546.0,59545.0,4.03680672]
[1617377348398,0.16024911,59546.0,59545.0,3.87]
[1617377348600,0.16024911,59546.0,59545.0,4.03680672]
[1617377348796,0.16122777,59546.0,59545.0,4.03680672]
[1617377348997,0.16122777,59546.0,59545.0,3.87]
[1617377348998,0.33422777,59546.0,59545.0,3.87]
[1617377349195,0.33422777,59546.0,59545.0,4.03680672]
[1617377349596,0.16122777,59546.0,59545.0,4.03680672]
[1617377349801,0.00024911,59546.0,59545.0,4.23643572]
[1617377350630,0.08897917,59546.0,59545.0,4.23643572]
[1617377350832,0.00024911,59546.0,59545.0,4.23643572]
[1617377351031,0.00024911,59546.0,59545.0,4.03680672]
[1617377351234,0.08897184,59546.0,59545.0,4.23643572]
[1617377351434,0.01985216,59546.0,59545.0,4.23643572]
[1617377351630,0.01985216,59546.0,59545.0,4.23843572]
[1617377352235,0.00024911,59546.0,59545.0,4.23843572]
[1617377353232,0.00024911,59546.0,59545.0,4.55192572]
[1617377353635,0.00024911,59546.0,59545.0,5.05192572]
[1617377355034,0.00024911,59546.0,59545.0,4.885119]
[1617377355234,0.00024911,59546.0,59545.0,5.19392653]
[1617377356666,0.00024911,59546.0,59545.0,1.63392653]
[1617377356864,0.00024911,59546.0,59545.0,1.43429753]
[1617377357067,0.00024911,59546.0,59545.0,1.12080753]
[1617377357269,0.00024911,59546.0,59545.0,0.667]
[1617377357462,0.00024911,59546.0,59545.0,0.665]
[1617377357668,0.00024911,59546.0,59545.0,0.515]
[1617377357871,0.00024911,59546.0,59545.0,0.015]
[1617377357872,0.74672302,59546.0,59545.0,0.015]
[1617377358068,0.00024911,59546.0,59545.0,0.015]
[1617377358496,0.30394623,59546.0,59545.0,0.015]
[1617377358895,0.24524911,59546.0,59545.0,0.015]
[1617377359296,0.30394261,59546.0,59545.0,0.015]
[1617377359694,0.24524911,59546.0,59545.0,0.015]
[1617377360094,0.30395166,59546.0,59545.0,0.015]
[1617377360693,0.24524911,59546.0,59545.0,0.015]
[1617377362319,0.2843558,59546.0,59545.0,0.015]
[1617377362723,0.24524911,59546.0,59545.0,0.015]
[1617377365369,0.00024911,59546.0,59545.0,0.015]
[1617377367377,0.03933894,59546.0,59545.0,0.015]
[1617377368789,0.00024911,59546.0,59545.0,0.015]
[1617377369190,0.03939712,59546.0,59545.0,0.015]
[1617377369387,0.03939712,59546.0,59545.0,0.264629]
[1617377369790,0.00024911,59546.0,59545.0,0.264629]
[1617377370291,0.0393985,59546.0,59545.0,0.065]
[1617377370690,0.0393985,59546.0,59545.0,0.015]
[1617377371092,0.00024911,59546.0,59545.0,0.015]
[1617377371291,0.14540474,59546.0,59545.0,0.015]
[1617377371919,0.10624911,59546.0,59545.0,0.015]
[1617377372320,0.14538502,59546.0,59545.0,0.015]
[1617377374140,0.10624911,59546.0,59545.0,0.015]
[1617377375143,0.14543536,59546.0,59545.0,0.015]
[1617377375745,0.10624911,59546.0,59545.0,0.015]
[1617377376146,0.14543282,59546.0,59545.0,0.015]
[1617377376966,0.10624911,59546.0,59545.0,0.015]
[1617377383045,0.10624911,59546.0,59545.0,0.30682304]
[1617377383641,0.10624911,59546.0,59545.0,0.015]
[1617377386848,0.10624911,59546.0,59545.0,0.20221016]
[1617377387265,0.10624911,59546.0,59545.0,0.25221016]
[1617377387666,0.10624911,59546.0,59545.0,0.45183916]
[1617377388065,0.10624911,59546.0,59545.0,1.65183916]
[1617377388266,0.10624911,59546.0,59545.0,0.45183916]
[1617377388670,0.10624911,59546.0,59545.0,0.6936622]
[1617377389473,0.10624911,59546.0,59545.0,0.4940332]
[1617377389672,0.10624911,59546.0,59545.0,0.30682304]
[1617377389921,0.15668416,59546.0,59545.0,0.264629]
[1617377390121,0.10624911,59546.0,59545.0,0.264629]
[1617377390521,0.10624911,59546.0,59545.0,0.45183916]
[1617377390720,0.10624911,59546.0,59545.0,0.25221016]
[1617377390920,0.10624911,59546.0,59545.0,0.065]
[1617377391120,0.10624911,59546.0,59545.0,0.015]
[1617377394126,0.16520314,59546.0,59545.0,0.015]
[1617377394928,0.10624911,59546.0,59545.0,0.015]
[1617377395171,0.10624911,59546.0,59545.0,0.214629]
[1617377395447,0.16520177,59546.0,59545.0,0.065]
[1617377395649,0.16520177,59546.0,59545.0,0.015]
[1617377395848,0.10624911,59546.0,59545.0,0.015]
[1617377397449,0.16523399,59546.0,59545.0,0.015]
[1617377398496,0.10624911,59546.0,59545.0,0.015]
[1617377399497,0.10624911,59546.0,59545.0,0.01]
[1617377400901,0.16523465,59546.0,59545.0,0.01]
[1617377401711,0.16523465,59546.0,59545.0,0.245]
[1617377401903,0.16523465,59546.0,59545.0,2.585]
[1617377401904,0.10624911,59546.0,59545.0,2.585]
[1617377402103,0.10624911,59546.0,59545.0,2.635]
[1617377402301,0.10624911,59546.0,59545.0,2.735]
[1617377403527,0.10624911,59546.0,59545.0,0.395]
[1617377403925,0.10624911,59546.0,59545.0,2.115]
[1617377404126,0.10624911,59546.0,59545.0,2.215]
[1617377404727,0.16524839,59546.0,59545.0,2.27618]
[1617377404925,0.16524839,59546.0,59545.0,4.01618]
[1617377405555,0.16524839,59546.0,59545.0,5.28275796]
[1617377406752,0.10624911,59546.0,59545.0,5.28275796]
[1617377408175,0.10624911,59546.0,59545.0,5.27275796]
[1617377408575,0.10624911,59546.0,59545.0,5.52275796]
[1617377408975,0.10624911,59546.0,59545.0,5.77628405]
[1617377409176,0.10624911,59546.0,59545.0,5.52275796]
[1617377409772,0.106,59546.0,59545.0,5.52275796]
[1617377409975,0.09124911,59546.0,59545.0,5.52275796]
[1617377410374,0.09124911,59546.0,59545.0,5.80928405]
[1617377411206,0.09124911,59546.0,59545.0,5.55775796]
[1617377411406,0.09124911,59546.0,59545.0,5.58875796]
[1617377411608,0.09124911,59546.0,59545.0,5.84228405]
[1617377411809,0.09124911,59546.0,59545.0,5.84028405]
[1617377413014,0.09124911,59546.0,59545.0,5.52275796]
[1617377413820,0.09124911,59546.0,59545.0,5.75475796]
[1617377414020,0.09124911,59546.0,59545.0,6.11238696]
[1617377416254,0.03933645,59547.0,59546.0,2.75095404]
[1617377416459,0.03933732,59548.0,59546.0,5.46943109]
[1617377416655,0.03933732,59548.0,59547.0,5.13010405]
[1617377416863,0.03934413,59549.0,59547.0,6.73287501]
[1617377417064,0.0590162,59555.0,59549.0,0.52197196]
[1617377417260,0.0046,59565.0,59554.0,0.14811312]
[1617377417261,0.05907626,59560.0,59554.0,0.14811312]
[1617377417465,0.05909193,59561.0,59555.0,0.49016018]
[1617377417661,0.05909193,59561.0,59557.0,0.301824]
[1617377417857,0.05909193,59561.0,59560.0,3.82680672]
[1617377418055,0.05909335,59562.0,59560.0,4.23383672]
[1617377418256,0.05909335,59562.0,59561.0,4.0649669]
[1617377418678,0.05909335,59562.0,59561.0,3.87680672]
[1617377419880,0.05409335,59562.0,59561.0,4.43680672]
[1617377420088,0.15759457,59575.0,59561.0,4.58243672]
[1617377420285,0.15759457,59575.0,59563.0,0.002]
[1617377420488,0.1576124,59576.0,59564.0,0.24380672]
[1617377420685,0.0002,59577.0,59565.0,1.26657796]
[1617377420686,0.15785014,59577.0,59565.0,1.26657796]
[1617377420884,0.15785014,59577.0,59565.0,1.92657796]
[1617377421087,0.15785014,59577.0,59570.0,0.251785]
[1617377421315,0.0002,59577.0,59572.0,0.83816018]
[1617377421502,0.0002,59578.0,59572.0,1.83816018]
[1617377421712,0.15789656,59579.0,59578.0,0.08801575]
[1617377421713,0.0002,59579.0,59578.0,0.08801575]
[1617377421907,0.0002,59579.0,59578.0,1.77492652]
[1617377422109,0.0002,59580.0,59579.0,0.35516524]
[1617377422308,0.0002,59580.0,59579.0,2.56342947]
[1617377422707,0.0002,59580.0,59579.0,2.90957963]
[1617377422908,0.0002,59585.0,59581.0,0.16680672]
[1617377422909,0.61345754,59583.0,59581.0,0.16680672]
[1617377423104,0.61345754,59583.0,59582.0,4.29338468]
[1617377423303,0.61345754,59583.0,59582.0,4.53338468]
[1617377423508,0.39239037,59583.0,59582.0,5.77853484]
[1617377423703,0.39239037,59583.0,59582.0,6.38853484]
[1617377423950,0.2544484,59583.0,59582.0,6.63853484]
[1617377424140,0.2544484,59583.0,59582.0,6.63414284]
[1617377424543,0.2544484,59583.0,59582.0,6.72414284]
[1617377424739,0.2544484,59583.0,59582.0,5.72414284]
[1617377425142,0.2544484,59583.0,59582.0,5.42414284]
[1617377425347,0.2544484,59583.0,59582.0,5.33414284]
[1617377425617,0.2544484,59583.0,59582.0,4.31899268]
[1617377425813,0.2544484,59583.0,59582.0,4.40899268]
[1617377426018,0.2544484,59583.0,59582.0,2.52899268]
[1617377426218,0.2544484,59583.0,59582.0,1.76899268]
[1617377426673,0.2544484,59583.0,59582.0,2.72899268]
[1617377426871,0.2527484,59583.0,59582.0,4.89899268]
[1617377427272,0.2527484,59583.0,59582.0,5.50899268]
[1617377427472,0.2527484,59583.0,59582.0,5.69799268]
[1617377427672,0.2527484,59583.0,59582.0,2.52899268]
[1617377428074,0.2477484,59583.0,59582.0,2.52899268]
[1617377428472,0.2477484,59583.0,59582.0,2.27415792]
[1617377430484,0.2477484,59583.0,59582.0,1.78854992]
[1617377430676,0.2477484,59583.0,59582.0,1.43338468]
[1617377431279,0.99422231,59583.0,59582.0,1.43338468]
[1617377431487,1.67937231,59583.0,59582.0,1.26657796]
[1617377431683,1.67937231,59583.0,59573.0,1.26657796]
[1617377431684,4.66529931,59583.0,59573.0,1.26657796]
[1617377431916,1.181,59574.0,59573.0,1.26657796]
[1617377432112,2.31340091,59574.0,59573.0,1.26657796]
[1617377432315,2.48840091,59574.0,59573.0,1.26657796]
[1617377432711,2.48840091,59574.0,59570.0,1.26657796]
[1617377432907,1.67740091,59573.0,59570.0,1.26657796]
[1617377433111,0.74647391,59572.0,59570.0,1.26657796]
[1617377433709,0.74647391,59573.0,59570.0,1.26657796]
[1617377433911,0.161,59574.0,59570.0,1.26657796]
[1617377434532,0.01206076,59573.0,59570.0,1.26657796]
[1617377437156,0.74647391,59572.0,59570.0,1.26657796]
[1617377437355,0.98731213,59572.0,59570.0,1.26657796]
[1617377437555,1.82647391,59571.0,59570.0,1.26657796]
[1617377437751,2.21240091,59571.0,59570.0,1.26657796]
[1617377437955,0.385927,59571.0,59570.0,1.26657796]
[1617377438155,0.23068,59572.0,59570.0,1.26657796]
[1617377438554,0.23068,59572.0,59570.0,1.26157796]
[1617377438754,0.08636,59572.0,59571.0,1.26157796]
[1617377438955,0.08636,59572.0,59570.0,1.26157796]
[1617377439156,0.01206076,59573.0,59570.0,1.26157796]
[1617377439355,0.74647391,59572.0,59570.0,1.26157796]
[1617377439558,0.163,59572.0,59570.0,1.26157796]
[1617377439784,3.01147391,59571.0,59570.0,1.26157796]
[1617377439982,1.28740091,59571.0,59570.0,1.26157796]
[1617377440658,2.06740091,59571.0,59570.0,1.26157796]
[1617377441057,0.540927,59571.0,59570.0,1.26157796]
[1617377441256,0.155,59571.0,59570.0,1.26157796]
[1617377442455,1.475,59571.0,59570.0,1.26157796]
[1617377442657,1.860927,59571.0,59570.0,1.26157796]
[1617377443057,4.100927,59571.0,59570.0,1.26133559]
[1617377443262,2.6076467,59571.0,59570.0,1.26133559]
[1617377443658,1.86117279,59571.0,59570.0,1.26133559]
[1617377444061,0.54117279,59571.0,59570.0,1.26133559]
[1617377444859,0.15524579,59571.0,59570.0,1.26133559]
[1617377445072,0.49212579,59571.0,59570.0,1.26133559]
[1617377446472,0.15524579,59571.0,59570.0,1.26133559]
[1617377446675,0.00024579,59571.0,59570.0,1.26133559]
[1617377446875,0.16628831,59571.0,59570.0,1.26133559]
[1617377447076,0.55221531,59571.0,59570.0,1.26133559]
[1617377447475,1.29868922,59571.0,59570.0,1.26133559]
[1617377448098,1.29770701,59571.0,59570.0,1.26133559]
[1617377448299,1.70565183,59571.0,59570.0,1.26133559]
[1617377448499,5.95270701,59571.0,59570.0,1.26133559]
[1617377448706,0.00303724,59570.0,59540.0,0.251927]
[1617377448899,0.162,59557.0,59540.0,0.251927]
[1617377449103,0.99034937,59556.0,59541.0,1.26133596]
[1617377449301,0.006,59552.0,59541.0,1.26133596]
[1617377449899,0.6475,59555.0,59542.0,1.26133596]
[1617377450099,0.6475,59555.0,59543.0,1.26133596]
[1617377450100,0.004,59548.0,59543.0,1.26133596]
[1617377450321,0.750927,59551.0,59544.0,1.26133596]
[1617377450322,0.365,59551.0,59544.0,1.26133596]
[1617377450522,0.365,59551.0,59545.0,1.26133596]
[1617377450722,0.004,59552.0,59546.0,1.26133596]
[1617377450723,0.225,59550.0,59546.0,1.26133596]
[1617377450921,0.225,59550.0,59547.0,1.26133596]
[1617377451122,0.385927,59549.0,59548.0,1.26133596]
[1617377451327,0.385927,59549.0,59536.0,0.301944]
[1617377451526,0.0044,59549.0,59537.0,1.46133596]
[1617377451725,0.0044,59549.0,59538.0,1.26133596]
[1617377451920,0.0052,59553.0,59538.0,1.26133596]
[1617377452724,0.195,59552.0,59538.0,1.26133596]
[1617377452949,0.0048,59550.0,59538.0,1.26133596]
[1617377453148,0.01205006,59548.0,59538.0,1.26133596]
[1617377454746,0.01205006,59548.0,59539.0,0.251933]
[1617377454948,0.00022639,59547.0,59540.0,1.26133596]
[1617377455150,0.00022639,59547.0,59540.0,1.31133596]
[1617377455346,0.00022639,59547.0,59541.0,1.26133596]
[1617377455783,0.00022639,59547.0,59542.0,1.26133596]
[1617377455981,0.00022639,59547.0,59543.0,1.26133596]
[1617377456184,0.00022639,59547.0,59544.0,1.26133596]
[1617377456384,0.7909846,59546.0,59545.0,1.26133596]
[1617377456586,0.0009846,59546.0,59537.0,0.2]
[1617377456782,0.0009846,59546.0,59538.0,1.26133596]
[1617377457180,0.0009846,59545.0,59538.0,1.26133596]
[1617377457390,0.0009846,59545.0,59538.0,1.31133596]
[1617377457585,0.00422639,59547.0,59539.0,1.61633596]
[1617377457586,0.0009846,59546.0,59539.0,1.61633596]
[1617377457784,0.0009846,59546.0,59540.0,1.26133596]
[1617377457984,0.00121099,59547.0,59541.0,0.315]
[1617377458203,0.00121099,59547.0,59542.0,1.26133596]
[1617377458603,0.0009846,59546.0,59542.0,1.26133596]
[1617377458799,0.0009846,59546.0,59542.0,1.25633596]
[1617377459004,0.0009846,59546.0,59543.0,1.25633596]
[1617377459207,0.0009846,59545.0,59544.0,1.25633596]
[1617377459405,0.00022639,59547.0,59544.0,1.25633596]
[1617377461224,0.00022639,59547.0,59545.0,1.25633596]
[1617377461424,0.00022639,59547.0,59546.0,1.25633596]
[1617377461626,0.00022639,59547.0,59538.0,1.25633596]
[1617377462023,0.00022639,59547.0,59539.0,0.295]
[1617377462226,0.00022639,59547.0,59540.0,1.25633596]
[1617377462827,0.00022639,59547.0,59541.0,1.25633596]
[1617377463229,0.00022639,59547.0,59542.0,1.25633596]
[1617377463653,0.00022639,59547.0,59543.0,1.25633596]
[1617377463853,0.00022639,59547.0,59544.0,1.25633596]
[1617377464050,0.00022639,59547.0,59545.0,1.25633596]
[1617377464251,0.00022639,59547.0,59546.0,1.25633596]
[1617377464456,0.00098398,59547.0,59546.0,1.25633596]
[1617377465253,0.00098398,59547.0,59538.0,1.25633596]
[1617377465452,0.00098398,59547.0,59538.0,1.30633596]
[1617377465658,0.00118456,59547.0,59539.0,1.25633596]
[1617377465855,0.00118456,59547.0,59540.0,1.25633596]
[1617377466109,0.251948,59546.0,59541.0,1.25633596]
[1617377466311,0.251948,59546.0,59542.0,1.25633596]
[1617377466512,0.251948,59546.0,59543.0,1.25633596]
[1617377466711,0.251948,59546.0,59544.0,1.25633596]
[1617377466909,0.251948,59546.0,59545.0,1.25633596]
[1617377467510,0.251948,59546.0,59545.0,1.44133596]
[1617377468309,0.251948,59546.0,59545.0,1.25633596]
[1617377468511,0.251948,59546.0,59538.0,1.25633596]
[1617377468712,0.00098556,59539.0,59538.0,1.30633596]
[1617377468910,0.00295667,59543.0,59538.0,0.05]
[1617377469113,0.01365337,59545.0,59539.0,1.25633596]
[1617377469313,0.01365337,59545.0,59540.0,1.25633596]
[1617377469512,0.01365337,59545.0,59541.0,1.25633596]
[1617377469713,0.01365337,59545.0,59542.0,1.25633596]
[1617377469912,0.01365337,59545.0,59543.0,1.25633596]
[1617377470113,0.01365337,59545.0,59544.0,1.25633596]
[1617377470513,0.01365337,59545.0,59538.0,1.25633596]
[1617377470727,0.01365337,59545.0,59538.0,1.30633596]
[1617377470925,0.02374893,59545.0,59539.0,1.25633596]
[1617377471126,0.02374893,59545.0,59540.0,1.25633596]
[1617377471329,0.02374893,59545.0,59541.0,1.25633596]
[1617377471528,0.02374893,59545.0,59542.0,1.25633596]
[1617377471728,0.02374893,59545.0,59543.0,1.25633596]
[1617377471929,0.02374893,59545.0,59544.0,2.89633596]
[1617377472130,0.02864893,59545.0,59544.0,1.25633596]
[1617377472529,0.02864893,59545.0,59538.0,1.25633596]
[1617377472729,0.02864893,59545.0,59538.0,1.30633596]
[1617377472929,0.02864893,59545.0,59539.0,1.25633596]
[1617377473132,0.02864893,59545.0,59540.0,1.25633596]
[1617377473330,0.02864893,59545.0,59541.0,1.25633596]
[1617377473533,0.02864893,59545.0,59542.0,1.25633596]
[1617377473735,0.02864893,59545.0,59543.0,1.25633596]
[1617377473955,0.02864893,59545.0,59537.0,0.2]
[1617377473956,2.49973454,59544.0,59537.0,0.2]
[1617377474160,2.49973454,59544.0,59538.0,1.25633596]
[1617377474161,0.445,59543.0,59538.0,1.25633596]
[1617377475753,0.251962,59544.0,59538.0,1.25633596]
[1617377476256,0.08447605,59543.0,59538.0,1.30633596]
[1617377476477,0.08447605,59543.0,59539.0,1.25633596]
[1617377476675,0.08447605,59543.0,59540.0,1.25633596]
[1617377476878,0.251962,59544.0,59541.0,1.25633596]
[1617377477076,0.251962,59544.0,59542.0,1.25633596]
[1617377477273,0.251962,59544.0,59543.0,1.25633596]
[1617377477479,0.251962,59544.0,59543.0,1.7]
[1617377477675,0.251962,59544.0,59543.0,2.95633596]
[1617377478076,0.01499556,59545.0,59543.0,2.95633596]
[1617377478275,0.01499556,59545.0,59544.0,1.25633596]
[1617377478476,0.01499556,59545.0,59544.0,1.41]
[1617377478675,0.01499556,59545.0,59544.0,2.66633596]
[1617377478875,0.01499556,59545.0,59544.0,1.25633596]
[1617377479105,0.09954381,59545.0,59544.0,1.25633596]
[1617377479306,0.09954381,59545.0,59538.0,1.25633596]
[1617377479307,0.01499556,59545.0,59538.0,1.25633596]
[1617377479503,0.08533539,59544.0,59538.0,1.25633596]
[1617377482928,0.08533539,59544.0,59538.0,1.30633596]
[1617377483128,0.08533539,59544.0,59539.0,1.25633596]
[1617377483529,0.08533539,59544.0,59540.0,1.25633596]
[1617377483930,0.08533539,59544.0,59541.0,1.25633596]
[1617377484129,0.08533539,59544.0,59542.0,1.25633596]
[1617377484370,0.08533539,59544.0,59543.0,1.25633596]
[1617377484564,0.08533539,59544.0,59538.0,1.25633596]
[1617377484761,0.08533539,59544.0,59538.0,1.30633596]
[1617377484962,0.08533539,59544.0,59539.0,1.25633596]
[1617377485161,0.08533539,59544.0,59540.0,1.25633596]
[1617377485363,0.08533539,59544.0,59541.0,1.25633596]
[1617377485685,0.08533539,59544.0,59542.0,1.25633596]
[1617377485885,0.08533539,59544.0,59543.0,1.25633596]
[1617377486485,0.08533539,59544.0,59538.0,1.25633596]
[1617377486685,0.08533539,59544.0,59538.0,1.30633596]
[1617377486885,0.08533539,59544.0,59539.0,1.25633596]
[1617377487087,0.08533539,59544.0,59539.0,1.30633596]
[1617377487288,1.07154384,59544.0,59540.0,1.25633596]
[1617377487491,0.98620845,59543.0,59540.0,1.25633596]
[1617377487697,4.20147391,59542.0,59541.0,1.25633596]
[1617377487893,4.42740091,59542.0,59538.0,1.25633596]
[1617377488091,2.13213545,59541.0,59538.0,1.25633596]
[1617377488293,0.25199,59540.0,59538.0,1.25633596]
[1617377488492,3.945927,59539.0,59538.0,1.25633596]
[1617377488690,3.945927,59539.0,59520.0,5.14253388]
[1617377488691,5.17283059,59539.0,59520.0,0.14253388]
[1617377488893,0.24277178,59538.0,59530.0,1.25633596]
[1617377489092,0.08548667,59537.0,59530.0,1.25633596]
[1617377489493,0.23973454,59536.0,59530.0,1.25633596]
[1617377489704,0.23973454,59536.0,59531.0,1.25633596]
[1617377489907,0.23973454,59536.0,59532.0,1.25633596]
[1617377490110,0.252003,59535.0,59533.0,1.25633596]
[1617377490309,0.252003,59535.0,59534.0,1.25633596]
[1617377490708,0.247003,59535.0,59534.0,1.25633596]
[1617377490905,0.247003,59535.0,59526.0,1.25633596]
[1617377491105,0.08557117,59534.0,59526.0,1.25633596]
[1617377491305,0.252011,59530.0,59526.0,1.25633596]
[1617377491506,0.703801,59530.0,59526.0,1.25633596]
[1617377491712,0.145,59528.0,59526.0,1.25633596]
[1617377492108,0.08557173,59527.0,59526.0,1.25633596]
[1617377492543,1.08406964,59527.0,59526.0,1.25633596]
[1617377492740,2.66394038,59527.0,59526.0,1.25633596]
[1617377492940,6.27394038,59527.0,59526.0,1.25633596]
[1617377493137,6.56394038,59527.0,59526.0,1.25633596]
[1617377493335,6.47836865,59527.0,59526.0,1.25633596]
[1617377493737,6.37836865,59527.0,59526.0,1.25633596]
[1617377494961,6.37836865,59527.0,59526.0,1.25133596]
[1617377495361,6.38845752,59527.0,59526.0,1.25133596]
[1617377495965,4.13708981,59526.0,59520.0,0.0004]
[1617377496162,6.5034191,59526.0,59520.0,0.0004]
[1617377496566,6.41225629,59526.0,59520.0,0.0004]
[1617377496965,5.66578238,59526.0,59520.0,0.0004]
[1617377497581,5.56578238,59526.0,59520.0,0.0004]
[1617377497985,2.00578238,59526.0,59520.0,0.0004]
[1617377498190,1.78067074,59526.0,59520.0,0.0004]
[1617377498392,0.39474374,59526.0,59524.0,0.129]
[1617377498588,0.01008887,59527.0,59520.0,0.0004]
[1617377498791,0.01008887,59527.0,59526.0,0.15363756]
[1617377498985,0.01008887,59527.0,59526.0,1.39973852]
[1617377499183,0.01008887,59527.0,59526.0,1.24610096]
[1617377501498,0.18008887,59527.0,59526.0,1.24610096]
[1617377503145,0.17508887,59527.0,59526.0,3.36610096]
[1617377503345,0.17508887,59527.0,59526.0,1.24610096]
[1617377504549,0.17008887,59527.0,59526.0,3.38610096]
[1617377504748,0.17008887,59527.0,59526.0,2.76610096]
[1617377504946,0.17008887,59527.0,59526.0,1.24610096]
[1617377505758,0.252041,59532.0,59527.0,0.63]
[1617377505962,0.252041,59532.0,59525.0,0.02380821]
[1617377506159,0.004,59534.0,59526.0,1.24610096]
[1617377506358,0.0058,59540.0,59526.0,1.24610096]
[1617377506560,0.16,59538.0,59526.0,1.24610096]
[1617377506759,0.252052,59533.0,59526.0,1.24610096]
[1617377507364,0.385927,59529.0,59526.0,1.24610096]
[1617377507562,0.34,59538.0,59526.0,1.24610096]
[1617377507563,2.865927,59527.0,59526.0,1.24610096]
[1617377507759,3.36067074,59527.0,59526.0,1.24610096]